bitfinex-derivatives/quotes_SOLF0:USTF0_20220102
["timestamp","ask_amount","ask_price","bid_price","bid_amount"]
[1641151133348,2.75184959,175.86,175.81,12.03121451]
[1641151134450,30.41690228,175.87,175.8,19.43652759]
[1641151135050,27.66479,175.87,175.8,19.43652759]
[1641151135250,2.7519408,175.86,175.81,12.03121451]
[1641151135848,27.66479,175.87,175.8,19.43652759]
[1641151136048,27.66479,175.87,175.8,24.87152759]
[1641151136849,2.75212631,175.86,175.81,1.28555693]
[1641151137750,60.90719128,175.88,175.8,26.58597066]
[1641151138050,60.90719128,175.88,175.8,23.58597066]
[1641151138652,2.75169083,175.87,175.81,13.31678587]
[1641151139352,48.7943,175.88,175.81,12.03121451]
[1641151140551,2.75169382,175.87,175.81,12.03121451]
[1641151140754,3.0,175.86,175.81,12.03121451]
[1641151141153,2.75218678,175.85,175.8,1.28557136]
[1641151142052,2.75232135,175.87,175.8,1.28557136]
[1641151142768,3.0,175.82,175.8,1.28557136]
[1641151142956,11.95797214,175.82,175.78,12.03121451]
[1641151143157,3.0,175.81,175.78,12.03121451]
[1641151143354,11.95797214,175.82,175.78,12.03121451]
[1641151143957,3.0,175.81,175.78,12.03121451]
[1641151144557,7.92,175.82,175.78,12.03121451]
[1641151144758,4.03883155,175.79,175.77,1.28541442]
[1641151145861,3.0,175.81,175.76,27.66479]
[1641151146060,5.75350389,175.81,175.76,27.66479]
[1641151146559,3.0,175.81,175.76,27.66479]
[1641151146759,4.03890152,175.79,175.77,1.28540743]
[1641151147359,3.0,175.81,175.76,27.66479]
[1641151148261,4.03890099,175.79,175.77,1.28540748]
[1641151148762,3.0,175.81,175.76,27.66479]
[1641151149662,4.03891452,175.79,175.77,1.28540613]
[1641151150565,38.8134,175.82,175.76,27.66479]
[1641151150762,3.0,175.81,175.76,27.66479]
[1641151150962,41.8134,175.82,175.76,27.66479]
[1641151151164,3.0,175.81,175.76,27.66479]
[1641151151564,35.35111198,175.82,175.76,27.66479]
[1641151152167,35.35111198,175.82,175.72,3.0]
[1641151152762,35.35111198,175.82,175.73,1.27670638]
[1641151153066,35.35111198,175.82,175.74,27.66479]
[1641151155167,4.01160655,175.78,175.75,1.28540395]
[1641151156775,8.32460655,175.78,175.75,1.28540395]
[1641151157172,35.98939655,175.78,175.75,1.28540395]
[1641151157772,35.98939655,175.78,175.74,12.03121451]
[1641151158673,35.98939655,175.78,175.74,4.02600979]
[1641151159374,31.97779,175.78,175.75,4.02600979]
[1641151159875,4.313,175.78,175.75,4.02600979]
[1641151160077,4.01160655,175.79,175.75,4.02600979]
[1641151160279,4.01160655,175.8,175.75,4.02600979]
[1641151160678,4.01160655,175.8,175.77,3.0]
[1641151160877,4.01160655,175.81,175.77,3.0]
[1641151161180,4.01160655,175.81,175.76,4.02600979]
[1641151161779,4.01160655,175.81,175.76,5.31141374]
[1641151162579,4.01160655,175.8,175.75,4.02600979]
[1641151163483,27.66479,175.78,175.75,4.02600979]
[1641151163679,33.29179,175.78,175.75,4.02600979]
[1641151165084,27.66479,175.78,175.75,4.02600979]
[1641151165283,27.66479,175.78,175.77,3.0]
[1641151165685,4.01160655,175.79,175.77,3.0]
[1641151166086,4.01160655,175.81,175.77,3.0]
[1641151166984,4.01160655,175.79,175.77,3.0]
[1641151174303,4.01160655,175.79,175.75,4.02600979]
[1641151174501,36.40539655,175.8,175.75,4.02600979]
[1641151176000,36.40539655,175.8,175.72,30.9329]
[1641151176001,4.01160655,175.79,175.74,4.02600979]
[1641151176603,4.01160655,175.76,175.72,34.95890979]
[1641151176806,4.01160655,175.76,175.72,4.02600979]
[1641151177804,4.01160655,175.76,175.72,5.30662918]
[1641151178006,9.22060655,175.76,175.72,5.30662918]
[1641151178206,9.22060655,175.76,175.72,8.30662918]
[1641151178407,5.209,175.76,175.72,8.30662918]
[1641151178805,5.209,175.76,175.72,5.30662918]
[1641151179207,5.209,175.76,175.72,4.02600979]
[1641151180008,5.209,175.76,175.72,5.30663311]
[1641151181108,5.209,175.76,175.74,4.02600979]
[1641151181311,2.75495282,175.75,175.74,4.02600979]
[1641151182610,2.75495282,175.75,175.74,7.02600979]
[1641151182808,12.11649465,175.79,175.74,7.02600979]
[1641151183410,14.8686165,175.79,175.77,4.02600979]
[1641151183612,2.75212185,175.79,175.77,4.02600979]
[1641151185416,2.75212185,175.81,175.77,5.30663311]
[1641151185615,2.75212185,175.81,175.78,3.0]
[1641151185814,2.75212185,175.81,175.8,3.0]
[1641151186013,2.185e-05,175.83,175.8,3.0]
[1641151186612,2.185e-05,175.83,175.81,3.0]
[1641151187013,2.185e-05,175.83,175.79,5.30663311]
[1641151187214,5.66402185,175.83,175.79,5.30663311]
[1641151187414,5.664,175.83,175.79,4.02600979]
[1641151187614,5.664,175.83,175.81,4.02600979]
[1641151188314,33.32879,175.83,175.81,4.02600979]
[1641151188714,45.44528465,175.83,175.79,4.02600979]
[1641151189616,33.32879,175.83,175.8,4.02600979]
[1641151190524,12.11649465,175.82,175.78,4.02600979]
[1641151191320,12.11649465,175.81,175.77,4.02600979]
[1641151192819,12.11649465,175.82,175.78,4.02600979]
[1641151194620,12.11649465,175.81,175.77,4.02600979]
[1641151196221,27.66479,175.8,175.77,4.02600979]
[1641151197222,39.78128465,175.8,175.76,4.02600979]
[1641151199523,12.11649465,175.79,175.75,7.02600979]
[1641151200223,4.0395146,175.76,175.75,7.02600979]
[1641151201027,41.64269465,175.79,175.75,7.02600979]
[1641151202127,41.64269465,175.79,175.76,3.0]
[1641151202928,12.11649465,175.79,175.75,4.02600979]
[1641151203129,18.95049465,175.79,175.75,4.02600979]
[1641151203831,12.11649465,175.78,175.74,7.02600979]
[1641151204031,12.11649465,175.78,175.74,4.02600979]
[1641151204429,12.11649465,175.78,175.76,3.0]
[1641151204830,4.03772679,175.77,175.76,7.02600979]
[1641151205532,4.03772679,175.77,175.76,4.02600979]
[1641151205731,8.78572679,175.77,175.76,4.02600979]
[1641151206933,8.78572679,175.77,175.76,7.02600979]
[1641151207232,4.748,175.77,175.76,7.02600979]
[1641151207432,39.78128465,175.8,175.76,7.02600979]
[1641151208031,4.03765188,175.77,175.76,7.02600979]
[1641151211439,39.78128465,175.8,175.76,7.02600979]
[1641151212039,39.78128465,175.8,175.76,3.0]
[1641151212842,39.78128465,175.8,175.75,4.02600979]
[1641151213043,12.11649465,175.79,175.77,3.0]
[1641151213249,12.11649465,175.79,175.72,29.9513]
[1641151213445,12.11649465,175.79,175.77,3.0]
[1641151213645,12.11784775,175.81,175.78,3.0]
[1641151213844,12.11784775,175.81,175.8,3.0]
[1641151214746,12.11784775,175.84,175.8,7.03858387]
[1641151214946,12.11784775,175.84,175.8,4.03858387]
[1641151215847,12.11784775,175.84,175.78,31.7627]
[1641151216749,10.03472675,175.86,175.8,4.03846642]
[1641151217251,10.03472675,175.86,175.81,3.0]
[1641151217451,12.11538404,175.84,175.78,31.7627]
[1641151217851,12.11538404,175.84,175.8,3.0]
[1641151218152,10.03472675,175.86,175.8,7.03846522]
[1641151219051,12.1160876,175.83,175.8,3.0]
[1641151219854,12.1160876,175.83,175.78,31.7627]
[1641151220054,12.1160876,175.83,175.79,4.03866295]
[1641151223658,12.1160876,175.82,175.78,35.80136295]
[1641151223860,12.1160876,175.82,175.78,4.03866295]
[1641151224460,12.1160876,175.83,175.79,4.03866295]
[1641151226063,32.4455,175.85,175.77,27.66479]
[1641151226663,2.74062419,175.84,175.77,27.66479]
[1641151227164,3.0,175.83,175.76,35.94826295]
[1641151227463,3.0,175.83,175.76,4.03866295]
[1641151227665,8.21862419,175.84,175.76,4.03866295]
[1641151227866,3.0,175.83,175.76,4.03866295]
[1641151228265,5.74062419,175.83,175.75,4.03866295]
[1641151228466,27.66479,175.81,175.75,4.03866295]
[1641151229067,31.68528871,175.81,175.75,4.03866295]
[1641151229769,4.02049871,175.79,175.73,33.45156295]
[1641151231669,33.14569871,175.8,175.74,5.31802774]
[1641151232570,4.02049871,175.79,175.73,33.45156295]
[1641151233771,4.02049871,175.76,175.74,1.28529721]
[1641151234669,4.02049871,175.75,175.72,1.28529721]
[1641151234871,8.69649871,175.75,175.72,1.28529721]
[1641151235671,4.02049871,175.74,175.72,1.28529721]
[1641151240476,4.02049871,175.75,175.72,1.28529721]
[1641151241180,4.02049871,175.74,175.72,1.28529721]
[1641151242579,4.02049871,175.76,175.72,19.43710026]
[1641151243180,4.02049871,175.76,175.72,13.31651172]
[1641151243381,4.02049871,175.75,175.72,1.28529721]
[1641151244783,4.02049871,175.75,175.71,39.69600451]
[1641151244983,12.1160876,175.79,175.71,27.66479]
[1641151244984,4.02049871,175.79,175.71,27.66479]
[1641151247285,7.02049871,175.79,175.71,27.66479]
[1641151248486,4.02049871,175.78,175.71,27.66479]
[1641151248789,31.68528871,175.78,175.71,27.66479]
[1641151249289,4.02049871,175.77,175.71,27.66479]
[1641151250093,27.66479,175.78,175.72,5.29630918]
[1641151251887,27.66479,175.78,175.72,4.01801432]
[1641151252089,30.66479,175.78,175.71,31.68280432]
[1641151252286,35.49979,175.78,175.71,31.68280432]
[1641151252489,32.49979,175.78,175.71,31.68280432]
[1641151252890,4.02049871,175.77,175.71,27.66479]
[1641151254091,4.02049871,175.76,175.71,27.66479]
[1641151255792,10.47849871,175.76,175.71,27.66479]
[1641151255994,10.47849871,175.76,175.68,4.01801432]
[1641151255995,13.47849871,175.76,175.68,4.01801432]
[1641151256195,3.0,175.73,175.72,5.30323536]
[1641151256396,3.0,175.74,175.72,5.30323536]
[1641151256594,3.0,175.73,175.72,5.30323536]
[1641151257095,30.66479,175.73,175.72,3.536e-05]
[1641151257295,30.66479,175.73,175.68,12.03121451]
[1641151257296,33.40478705,175.73,175.68,4.04138657]
[1641151257494,30.40478705,175.73,175.68,4.04138657]
[1641151257694,33.40478705,175.73,175.68,4.04138657]
[1641151258098,30.66479,175.73,175.64,12.03121451]
[1641151258296,12.12532452,175.7,175.62,12.03121451]
[1641151258897,27.66479,175.69,175.62,12.03121451]
[1641151259295,34.21679,175.69,175.62,12.03121451]
[1641151260998,46.34211452,175.69,175.61,18.15244432]
[1641151261401,49.34211452,175.69,175.61,18.15244432]
[1641151261598,49.34211452,175.69,175.61,12.03121451]
[1641151261797,49.34211452,175.69,175.6,39.69600451]
[1641151261798,12.12532452,175.68,175.6,39.69600451]
[1641151262401,12.12532452,175.68,175.64,3.0]
[1641151262603,32.29229839,175.72,175.65,3.0]
[1641151262801,32.29229839,175.72,175.67,3.0]
[1641151263002,12.12569233,175.7,175.68,27.66479]
[1641151263201,12.12569233,175.7,175.68,33.40279]
[1641151263403,12.12569233,175.7,175.68,36.40279]
[1641151264208,32.29229839,175.74,175.68,36.40279]
[1641151264403,10.04029359,175.78,175.68,36.40279]
[1641151264904,10.04029359,175.78,175.71,27.66479]
[1641151265306,5.68779683,175.79,175.71,27.66479]
[1641151265707,42.33259198,175.8,175.71,27.66479]
[1641151265910,42.33259198,175.8,175.73,3.0]
[1641151266108,42.33259198,175.8,175.71,34.21379]
[1641151266607,42.33259198,175.8,175.71,37.21379]
[1641151266811,42.33259198,175.8,175.72,3.0]
[1641151267212,10.04029359,175.8,175.71,37.21379]
[1641151267611,10.04029359,175.8,175.71,34.21379]
[1641151267811,15.22529359,175.8,175.71,27.66479]
[1641151268614,15.22529359,175.8,175.71,30.66479]
[1641151270115,15.22529359,175.8,175.71,27.66479]
[1641151270315,3.0,175.79,175.71,27.66479]
[1641151270517,15.22529359,175.8,175.71,27.66479]
[1641151270715,3.0,175.77,175.68,27.66479]
[1641151270920,5.68779683,175.79,175.68,27.66479]
[1641151271118,27.66479,175.77,175.68,27.66479]
[1641151272518,10.04029359,175.76,175.68,27.66479]
[1641151272716,47.37299359,175.76,175.68,27.66479]
[1641151273318,10.04029359,175.75,175.68,27.66479]
[1641151275621,10.04029359,175.75,175.68,30.66479]
[1641151276220,27.66479,175.77,175.68,30.66479]
[1641151276919,32.29229839,175.8,175.69,3.0]
[1641151277119,10.03918942,175.76,175.7,3.0]
[1641151277319,10.03918942,175.76,175.71,27.66479]
[1641151278119,10.03918942,175.76,175.68,27.66479]
[1641151278320,6.678,175.76,175.68,27.66479]
[1641151279221,38.97029839,175.76,175.68,27.66479]
[1641151279421,66.63508839,175.76,175.68,27.66479]
[1641151280424,10.03918942,175.75,175.68,27.66479]
[1641151280621,10.03918942,175.75,175.68,21.19939964]
[1641151281123,27.66479,175.76,175.68,21.19939964]
[1641151283526,3.0,175.75,175.65,6.22532508]
[1641151283726,31.8247,175.74,175.65,6.22532508]
[1641151285430,27.66479,175.7,175.65,6.22532508]
[1641151287431,27.66479,175.7,175.64,31.7286]
[1641151288233,27.66479,175.7,175.65,6.22544251]
[1641151288835,31.8247,175.74,175.65,6.22544251]
[1641151289635,31.8247,175.74,175.65,9.22544251]
[1641151290035,31.8247,175.74,175.65,6.22544251]
[1641151290236,33.11679,175.76,175.65,6.22544251]
[1641151290440,27.66479,175.76,175.65,6.22544251]
[1641151291038,9.93746661,175.75,175.65,6.22544251]
[1641151291239,15.83446661,175.75,175.65,6.22544251]
[1641151292940,5.897,175.75,175.64,34.7286]
[1641151293141,5.897,175.75,175.65,3.0]
[1641151293744,5.897,175.75,175.65,30.66479]
[1641151293944,5.897,175.75,175.66,3.0]
[1641151294143,27.66479,175.76,175.66,3.0]
[1641151294743,27.66479,175.76,175.65,48.94559545]
[1641151295346,27.66479,175.76,175.65,45.94559545]
[1641151295545,27.66479,175.76,175.66,12.0780959]
[1641151295744,27.66479,175.72,175.66,18.28080545]
[1641151296546,27.66479,175.72,175.65,42.7428859]
[1641151297047,27.66479,175.72,175.65,39.7428859]
[1641151297949,27.66479,175.72,175.66,1.31953578]
[1641151299851,27.66479,175.76,175.66,19.60037148]
[1641151300853,2.71627576,175.75,175.68,12.0780959]
[1641151306163,27.66479,175.73,175.68,12.0780959]
[1641151306864,27.66479,175.73,175.67,12.0780959]
[1641151307567,2.71627576,175.72,175.67,12.0780959]
[1641151307862,2.71627576,175.72,175.7,3.0]
[1641151308062,2.71627576,175.72,175.7,7.528]
[1641151308264,2.71627576,175.75,175.7,19.6060959]
[1641151308464,2.71627576,175.75,175.7,16.6060959]
[1641151309468,27.66479,175.76,175.7,16.6060959]
[1641151309666,27.66479,175.76,175.71,13.39763168]
[1641151310468,27.66479,175.76,175.72,12.0780959]
[1641151316873,27.66479,175.76,175.71,12.0780959]
[1641151317074,33.95379,175.76,175.71,12.0780959]
[1641151317575,33.95379,175.76,175.72,4.02094021]
[1641151318473,33.95379,175.76,175.71,7.02094021]
[1641151319474,33.95379,175.76,175.71,4.02094021]
[1641151319675,33.95379,175.76,175.72,5.34047599]
[1641151320278,33.95379,175.76,175.72,4.02094021]
[1641151320979,33.95379,175.76,175.72,5.34047599]
[1641151322481,33.95379,175.76,175.7,5.34047599]
[1641151323182,4.02094021,175.75,175.74,4.02094021]
[1641151323781,2.715411,175.75,175.74,4.02094021]
[1641151325081,33.95379,175.76,175.71,1.31953578]
[1641151325282,4.03982364,175.75,175.71,19.6226227]
[1641151328189,4.03982364,175.76,175.72,12.0780959]
[1641151330289,2.71513389,175.77,175.75,4.03976746]
[1641151330489,2.71513389,175.77,175.75,6.746e-05]
[1641151331089,27.66479,175.76,175.71,13.39763168]
[1641151331290,34.35579,175.76,175.7,1.31953578]
[1641151332491,2.71513389,175.75,175.68,19.52590998]
[1641151333092,27.66479,175.73,175.68,19.52590998]
[1641151333294,27.66479,175.73,175.68,13.39763168]
[1641151333495,27.66479,175.73,175.68,1.31953578]
[1641151334300,2.71513389,175.72,175.68,1.31953578]
[1641151334496,8.61913389,175.72,175.68,1.31953578]
[1641151334998,8.61913389,175.72,175.65,12.0780959]
[1641151335801,2.71513389,175.71,175.65,12.0780959]
[1641151337101,2.71513389,175.71,175.64,19.62306608]
[1641151337804,2.71513389,175.71,175.64,1.31953578]
[1641151339504,14.79322979,175.71,175.64,1.31953578]
[1641151340306,2.71513389,175.71,175.64,19.52636953]
[1641151341507,5.904,175.72,175.64,19.52636953]
[1641151341705,27.66479,175.73,175.64,19.52636953]
[1641151342307,14.87792659,175.72,175.64,19.52636953]
[1641151342507,20.78592659,175.72,175.64,19.52636953]
[1641151343107,2.75353383,175.71,175.64,19.52636953]
[1641151343911,18.03239276,175.72,175.64,19.52636953]
[1641151344115,3.0,175.66,175.64,19.52636953]
[1641151344310,9.875,175.66,175.64,19.52636953]
[1641151344511,6.875,175.66,175.64,12.95076953]
[1641151344712,6.875,175.66,175.64,6.82203168]
[1641151344914,6.875,175.66,175.61,6.82203168]
[1641151345312,27.66479,175.62,175.61,6.82203168]
[1641151345513,31.86479,175.62,175.61,6.82203168]
[1641151346013,25.39701505,175.62,175.57,6.12206429]
[1641151346413,25.39701505,175.62,175.58,6.12206429]
[1641151347415,25.39701505,175.62,175.57,6.12206429]
[1641151349916,25.39701505,175.62,175.54,6.12206429]
[1641151350315,21.19701505,175.62,175.54,6.12206429]
[1641151350914,29.5176,175.64,175.55,32.29229839]
[1641151351115,8.69087184,175.7,175.55,38.93129839]
[1641151351416,27.66479,175.68,175.58,27.66479]
[1641151352618,57.82829,175.7,175.59,6.12206429]
[1641151352817,57.82829,175.7,175.59,12.82806429]
[1641151353117,27.66479,175.7,175.59,12.82806429]
[1641151353318,27.66479,175.7,175.6,30.8632]
[1641151354122,27.66479,175.7,175.61,6.12206429]
[1641151356223,30.66479,175.7,175.61,6.12206429]
[1641151357434,27.66479,175.65,175.61,6.12206429]
[1641151357624,32.13179,175.65,175.61,6.12206429]
[1641151357825,32.13179,175.65,175.59,6.12206429]
[1641151358726,32.13179,175.65,175.56,6.12206429]
[1641151358927,3.0,175.64,175.56,6.12206429]
[1641151359125,32.13179,175.65,175.56,6.12206429]
[1641151359325,27.66479,175.62,175.56,6.12206429]
[1641151359927,27.66479,175.62,175.54,6.12206429]
[1641151363538,30.66479,175.62,175.54,6.12206429]
[1641151363738,27.66479,175.62,175.54,6.12206429]
[1641151364338,30.66479,175.62,175.54,6.12206429]
[1641151364538,3.0,175.61,175.54,6.12206429]
[1641151364740,3.0,175.6,175.54,6.12206429]
[1641151364940,3.0,175.59,175.54,6.12206429]
[1641151365341,27.66479,175.57,175.54,6.12206429]
[1641151365642,27.66479,175.57,175.54,4.79636429]
[1641151365643,33.21779,175.57,175.54,4.79636429]
[1641151365941,36.21779,175.57,175.54,4.79636429]
[1641151366143,33.21779,175.57,175.54,4.79636429]
[1641151366545,36.21779,175.57,175.54,4.79636429]
[1641151366844,33.21779,175.57,175.5,32.29229839]
[1641151367047,36.21779,175.57,175.5,32.29229839]
[1641151367243,36.21779,175.57,175.47,32.29229839]
[1641151367444,27.66479,175.52,175.47,32.29229839]
[1641151367647,32.45879,175.52,175.47,32.29229839]
[1641151368245,4.794,175.52,175.46,29.6844]
[1641151368546,29.3623,175.56,175.46,29.6844]
[1641151369346,29.3623,175.56,175.48,27.66479]
[1641151370453,29.3623,175.56,175.49,32.29229839]
[1641151372049,27.66479,175.57,175.49,32.29229839]
[1641151375349,27.66479,175.57,175.53,12.13180152]
[1641151378153,27.66479,175.57,175.54,12.13180152]
[1641151380458,27.66479,175.57,175.53,12.13180152]
[1641151380655,31.84579,175.57,175.53,12.13180152]
[1641151380856,3.0,175.56,175.53,12.13180152]
[1641151381255,31.84579,175.57,175.53,12.13180152]
[1641151381956,31.84579,175.57,175.51,12.13180152]
[1641151382657,31.84579,175.57,175.52,12.13180152]
[1641151383258,31.84579,175.57,175.51,12.13180152]
[1641151383456,34.84579,175.57,175.51,12.13180152]
[1641151383657,3.0,175.54,175.51,12.13180152]
[1641151383860,3.0,175.53,175.51,12.13180152]
[1641151384057,7.616,175.53,175.51,12.13180152]
[1641151384961,3.0,175.52,175.51,12.13180152]
[1641151385564,30.66479,175.52,175.49,12.13180152]
[1641151385768,3.0,175.5,175.49,12.13180152]
[1641151386161,3.0,175.5,175.48,12.13180152]
[1641151386362,27.66479,175.52,175.48,12.13180152]
[1641151386363,3.0,175.49,175.48,12.13180152]
[1641151386561,8.556,175.49,175.48,12.13180152]
[1641151387260,8.556,175.49,175.47,12.13180152]
[1641151395170,12.60109238,175.49,175.45,12.13180152]
[1641151395571,27.66479,175.47,175.45,12.13180152]
[1641151396775,27.66479,175.47,175.42,7.40625033]
[1641151396776,3.0,175.46,175.42,7.40625033]
[1641151396972,3.0,175.45,175.42,7.40625033]
[1641151397172,3.0,175.44,175.41,32.29229839]
[1641151397371,8.27,175.45,175.42,4.00833726]
[1641151397573,27.66479,175.43,175.42,4.00833726]
[1641151398171,27.66479,175.43,175.37,4.00833726]
[1641151399173,27.66479,175.43,175.36,5.27990081]
[1641151399572,27.66479,175.4,175.36,5.27990081]
[1641151399973,33.33379,175.4,175.35,33.78903726]
[1641151400373,33.33379,175.4,175.35,4.00833726]
[1641151401773,3.0,175.39,175.35,4.00833726]
[1641151401974,36.33379,175.4,175.35,4.00833726]
[1641151402575,33.33379,175.4,175.35,4.00833726]
[1641151402775,36.33379,175.4,175.32,5.27985546]
[1641151403276,3.0,175.39,175.31,31.67312726]
[1641151403875,3.0,175.37,175.31,31.67312726]
[1641151405280,28.9428,175.39,175.31,31.67312726]
[1641151405478,28.9428,175.39,175.29,31.67312726]
[1641151405678,3.0,175.34,175.29,31.67312726]
[1641151405977,3.0,175.33,175.29,4.00833726]
[1641151406577,3.0,175.34,175.27,4.00833726]
[1641151406777,30.55481126,175.36,175.27,4.00833726]
[1641151407080,4.04509238,175.34,175.33,4.00833726]
[1641151407978,4.04509238,175.34,175.26,7.40479412]
[1641151408181,62.26469364,175.36,175.28,32.29229839]
[1641151408883,62.26469364,175.36,175.35,4.04918906]
[1641151409083,34.59990364,175.36,175.35,4.04918906]
[1641151409282,28.23090364,175.36,175.35,4.04918906]
[1641151409681,24.18581126,175.36,175.3,49.62089544]
[1641151409881,35.51099238,175.38,175.31,3.0]
[1641151410082,4.04509238,175.38,175.32,3.0]
[1641151410282,4.04509238,175.38,175.31,4.183]
[1641151410490,27.66479,175.39,175.32,33.57553341]
[1641151410883,27.66479,175.39,175.34,3.0]
[1641151411189,27.66479,175.39,175.32,36.57553341]
[1641151411386,27.66479,175.39,175.34,32.29229839]
[1641151411784,27.66479,175.39,175.34,35.29229839]
[1641151411984,27.66479,175.39,175.34,32.29229839]
[1641151412287,27.66479,175.39,175.36,3.0]
[1641151412683,27.66479,175.39,175.32,10.40479412]
[1641151412884,32.91679,175.39,175.37,1.28323502]
[1641151414188,36.96188238,175.39,175.33,3.0]
[1641151414988,32.91679,175.39,175.38,4.04857119]
[1641151415487,27.66479,175.39,175.38,4.04857119]
[1641151416089,30.43030569,175.39,175.37,4.04857119]
[1641151416792,2.76551569,175.38,175.36,4.04857119]
[1641151417493,2.76551569,175.38,175.37,4.04857119]
[1641151418095,2.76551569,175.38,175.36,4.04857119]
[1641151419494,2.76551569,175.38,175.37,4.04857119]
[1641151421494,2.76551569,175.38,175.36,4.04857119]
[1641151421696,27.66479,175.37,175.36,4.04857119]
[1641151422294,2.76551569,175.38,175.36,4.04857119]
[1641151422794,61.64079839,175.44,175.34,1.28323502]
[1641151422996,6.094,175.42,175.31,32.29229839]
[1641151423595,6.094,175.42,175.29,30.4411]
[1641151423794,27.66479,175.39,175.33,3.0]
[1641151424395,27.66479,175.39,175.29,58.10589]
[1641151424396,27.66479,175.39,175.31,3.0]
[1641151425296,27.66479,175.39,175.29,62.10450012]
[1641151425795,27.66479,175.36,175.29,62.10450012]
[1641151426198,29.3485,175.44,175.29,62.10450012]
[1641151426995,5.6999544,175.42,175.29,62.10450012]
[1641151427196,12.5569544,175.42,175.39,3.99861012]
[1641151427798,55.32958,175.4,175.39,3.99861012]
[1641151428198,55.32958,175.4,175.35,3.99861012]
[1641151429097,14.91342892,175.39,175.35,3.99861012]
[1641151429997,27.66479,175.36,175.32,12.14525208]
[1641151430998,4.04904912,175.35,175.31,13.42818028]
[1641151431599,4.04904912,175.35,175.31,16.42818028]
[1641151431999,4.04904912,175.34,175.31,4.2829282]
[1641151432298,27.66479,175.32,175.31,4.2829282]
[1641151433198,27.66479,175.32,175.31,16.42818028]
[1641151434498,4.04904912,175.35,175.31,16.42818028]
[1641151434701,4.04904912,175.37,175.34,3.0]
[1641151434900,4.04904912,175.37,175.36,3.0]
[1641151435099,4.04904912,175.37,175.36,7.184]
[1641151435598,12.14793976,175.4,175.36,7.184]
[1641151435799,4.0477628,175.4,175.39,6.0]
[1641151436099,4.0477628,175.4,175.39,3.0]
[1641151436699,12.14793976,175.44,175.39,3.0]
[1641151436999,12.14793976,175.46,175.39,1.2829282]
[1641151437601,12.14793976,175.46,175.43,3.0]
[1641151438001,14.9127089,175.46,175.43,3.0]
[1641151438203,2.76476914,175.46,175.43,3.0]
[1641151438502,2.76476914,175.46,175.42,3.0]
[1641151438902,2.76476914,175.46,175.43,1.2829282]
[1641151440703,2.76476914,175.46,175.42,1.2829282]
[1641151442205,27.66479,175.43,175.42,1.2829282]
[1641151443007,30.42955914,175.43,175.38,1.2829282]
[1641151443905,30.42955914,175.43,175.42,3.0]
[1641151444107,12.14793976,175.44,175.42,3.0]
[1641151444805,12.14793976,175.46,175.42,3.0]
[1641151445008,12.14793976,175.46,175.38,18.26377853]
[1641151446010,12.14793976,175.45,175.38,1.28325135]
[1641151447010,12.14793976,175.45,175.38,4.28325135]
[1641151447310,12.14793976,175.44,175.4,3.0]
[1641151448211,12.14793976,175.45,175.38,3.0]
[1641151448510,12.14793976,175.45,175.37,29.2698]
[1641151448710,12.14793976,175.44,175.37,29.2698]
[1641151449311,12.14793976,175.44,175.38,3.0]
[1641151449511,12.14793976,175.43,175.4,3.0]
[1641151450417,39.81272976,175.47,175.4,3.0]
[1641151451313,27.66479,175.47,175.4,3.0]
[1641151453714,27.66479,175.47,175.41,1.28324833]
[1641151453915,12.14793976,175.45,175.41,1.28324833]
[1641151454119,12.14793976,175.45,175.41,4.28324833]
[1641151454616,12.14793976,175.45,175.42,1.28324833]
[1641151454816,39.81272976,175.47,175.42,1.28324833]
[1641151455620,12.14793976,175.46,175.4,3.0]
[1641151455921,12.14793976,175.46,175.38,19.54688668]
[1641151456118,12.14793976,175.46,175.4,3.0]
[1641151456419,39.81272976,175.47,175.4,3.0]
[1641151457120,12.14793976,175.46,175.41,1.28324833]
[1641151457923,17.69293976,175.46,175.41,1.28324833]
[1641151458322,5.545,175.46,175.41,1.28324833]
[1641151458923,12.14793976,175.45,175.41,1.28324833]
[1641151459826,14.91257166,175.45,175.38,1.28324833]
[1641151460829,14.91257166,175.45,175.4,3.0]
[1641151461027,12.14793976,175.45,175.4,3.0]
[1641151461430,12.14793976,175.45,175.38,1.28324833]
[1641151461628,12.14793976,175.43,175.35,12.14328839]
[1641151461827,12.14793976,175.43,175.36,3.0]
[1641151462229,12.14793976,175.43,175.37,3.0]
[1641151462629,27.66479,175.39,175.37,3.0]